bitfinex/quotes_SOLUSD_20250102
["timestamp","ask_amount","ask_price","bid_price","bid_amount"]
[1735850453546,8.8990152,207.74,207.68,30.0]
[1735850453733,8.8990152,207.73,207.68,30.0]
[1735850453909,8.8990152,207.74,207.68,30.0]
[1735850456027,8.8990152,207.75,207.68,38.8990152]
[1735850457837,8.8990152,207.74,207.68,30.0]
[1735850458539,8.8990152,207.72,207.68,30.0]
[1735850458918,8.8990152,207.73,207.68,30.0]
[1735850460150,8.8990152,207.74,207.68,30.0]
[1735850460340,8.8990152,207.73,207.66,9.62111321]
[1735850460515,8.8990152,207.72,207.66,0.72209801]
[1735850460720,8.8990152,207.68,207.64,7.9164]
[1735850460936,8.8990152,207.73,207.66,8.8990152]
[1735850461231,8.8990152,207.73,207.67,8.8990152]
[1735850461746,8.8990152,207.73,207.66,8.8990152]
[1735850462038,8.8990152,207.73,207.67,8.8990152]
[1735850462340,8.8990152,207.74,207.67,8.8990152]
[1735850464747,8.8990152,207.75,207.68,8.8990152]
[1735850465319,8.8990152,207.74,207.67,8.8990152]
[1735850465828,8.8990152,207.75,207.68,8.8990152]
[1735850466557,8.8990152,207.76,207.69,8.8990152]
[1735850467345,8.8990152,207.77,207.7,8.8990152]
[1735850467528,12.0285,207.84,207.72,8.8990152]
[1735850467731,8.8990152,207.79,207.72,10.5346152]
[1735850468717,8.8990152,207.78,207.72,1.6356]
[1735850469143,8.8990152,207.77,207.72,1.6356]
[1735850470234,8.8990152,207.75,207.72,1.6356]
[1735850471150,8.8990152,207.76,207.72,1.6356]
[1735850471925,8.8990152,207.77,207.72,1.6356]
[1735850472654,8.8990152,207.76,207.72,1.6356]
[1735850473970,8.8990152,207.73,207.66,1.546]
[1735850474135,8.8990152,207.7,207.66,1.546]
[1735850474951,8.8990152,207.68,207.59,43.5886]
[1735850475135,6.6268,207.76,207.59,52.4876152]
[1735850475136,8.8990152,207.66,207.59,52.4876152]
[1735850475454,8.8990152,207.65,207.59,31.546]
[1735850475621,8.8990152,207.66,207.59,40.4450152]
[1735850476239,13.93827341,207.66,207.59,45.48427341]
[1735850476951,13.93827341,207.67,207.59,45.48427341]
[1735850477175,13.93827341,207.68,207.61,13.93827341]
[1735850477348,13.93827341,207.68,207.62,30.0]
[1735850478341,0.37647,207.72,207.62,30.0]
[1735850478342,13.93827341,207.69,207.62,43.93827341]
[1735850479155,13.93827341,207.7,207.63,13.93827341]
[1735850480029,13.93827341,207.72,207.65,13.93827341]
[1735850480264,13.93827341,207.73,207.66,13.93827341]
[1735850480660,13.93827341,207.71,207.64,13.93827341]
[1735850482175,13.93827341,207.67,207.63,6.4016]
[1735850482468,13.93827341,207.66,207.59,45.48427341]
[1735850482635,13.93827341,207.66,207.59,31.546]
[1735850482959,13.93827341,207.66,207.59,45.48427341]
[1735850483146,13.93827341,207.65,207.59,1.546]
[1735850483347,13.93827341,207.64,207.59,1.546]
[1735850483554,13.93827341,207.66,207.59,1.546]
[1735850483731,14.06376341,207.65,207.59,1.546]
[1735850484136,13.93827341,207.64,207.59,1.546]
[1735850485036,13.93827341,207.65,207.59,1.546]
[1735850486974,0.12549,207.65,207.59,15.48427341]
[1735850488985,0.12549,207.65,207.59,1.546]
[1735850489981,0.12549,207.65,207.59,15.48427341]
[1735850490873,0.12549,207.65,207.59,1.546]
[1735850491452,0.12549,207.65,207.59,15.48427341]
[1735850493783,1.6534,207.74,207.6,13.93827341]
[1735850494076,13.93827341,207.7,207.63,13.93827341]
[1735850494472,14.06376341,207.69,207.62,13.93827341]
[1735850495453,0.12549,207.69,207.62,13.93827341]
[1735850495654,13.93827341,207.7,207.62,13.93827341]
[1735850496268,8.91833873,207.68,207.61,8.91833873]
[1735850497278,0.12549,207.68,207.62,8.91833873]
[1735850497570,8.91833873,207.71,207.64,8.91833873]
[1735850497777,20.0,207.72,207.63,8.91833873]
[1735850497778,8.91833873,207.7,207.63,8.91833873]
[1735850498568,9.16931873,207.71,207.64,8.91833873]
[1735850498765,0.25098,207.71,207.66,8.91833873]
[1735850499276,12.032,207.78,207.67,8.91833873]
[1735850499467,8.91833873,207.75,207.67,8.91833873]
[1735850499772,9.29480873,207.74,207.67,8.91833873]
[1735850500796,9.29480873,207.74,207.66,16.51423873]
[1735850501090,0.12549,207.72,207.66,16.51423873]
[1735850502067,8.91833873,207.72,207.66,7.5959]
[1735850503363,0.12549,207.72,207.66,16.51423873]
[1735850503564,9.04382873,207.72,207.66,7.5959]
[1735850514212,8.91833873,207.73,207.66,7.5959]
[1735850514428,0.12549,207.76,207.69,8.91833873]
[1735850514429,8.91833873,207.76,207.69,8.91833873]
[1735850515410,9.29480873,207.76,207.69,8.91833873]
[1735850515612,9.29480873,207.76,207.66,37.5959]
[1735850515613,0.12549,207.74,207.68,8.91833873]
[1735850515913,8.91833873,207.71,207.66,7.5959]
[1735850516103,8.91833873,207.72,207.66,7.5959]
[1735850517598,8.91833873,207.73,207.66,16.51423873]
[1735850518899,8.91833873,207.72,207.66,7.5959]
[1735850520422,8.91833873,207.73,207.66,16.51423873]
[1735850520623,0.12549,207.77,207.66,16.51423873]
[1735850520925,23.902374,207.78,207.66,16.51423873]
[1735850520926,0.12549,207.73,207.66,16.51423873]
[1735850522921,8.91833873,207.74,207.67,8.91833873]
[1735850523119,8.91833873,207.76,207.68,8.91833873]
[1735850523324,8.91833873,207.76,207.69,8.91833873]
[1735850523909,20.0,207.79,207.71,8.91833873]
[1735850524103,0.25098,207.77,207.72,8.91833873]
[1735850524303,8.91833873,207.79,207.72,8.91833873]
[1735850525016,8.91833873,207.78,207.71,38.91833873]
[1735850525215,8.91833873,207.79,207.72,8.91833873]
[1735850528629,8.91833873,207.79,207.73,8.91833873]
[1735850528828,0.12549,207.79,207.73,10.57393873]
[1735850529035,0.12549,207.79,207.74,8.91833873]
[1735850529339,0.12549,207.79,207.73,17.11083873]
[1735850530139,8.91833873,207.79,207.73,8.1925]
[1735850530512,8.91833873,207.76,207.73,1.6556]
[1735850530713,8.91833873,207.76,207.69,8.91833873]
[1735850530913,8.91833873,207.74,207.68,38.0147]
[1735850531126,8.91833873,207.73,207.68,8.0147]
[1735850531411,8.91833873,207.71,207.64,8.91833873]
[1735850532128,8.91833873,207.72,207.65,8.91833873]
[1735850533014,8.91833873,207.71,207.64,8.91833873]
[1735850533330,8.91833873,207.7,207.63,16.93303873]
[1735850534029,8.91833873,207.7,207.63,8.0147]
[1735850534221,8.91833873,207.7,207.64,8.91833873]
[1735850534423,0.12549,207.7,207.64,8.91833873]
[1735850536513,12.0325,207.77,207.66,8.91833873]
[1735850536718,8.91833873,207.72,207.66,8.91833873]
[1735850536929,0.37647,207.74,207.68,8.91833873]
[1735850537531,9.29480873,207.74,207.67,8.91833873]
[1735850538139,0.12549,207.72,207.67,8.91833873]
[1735850538340,0.12549,207.72,207.66,8.91833873]
[1735850538641,9.04382873,207.72,207.65,8.91833873]
[1735850539438,8.91833873,207.71,207.63,8.0147]
[1735850539734,8.91833873,207.71,207.65,8.91833873]
[1735850540442,8.91833873,207.69,207.63,8.0147]
[1735850540749,8.91833873,207.71,207.64,8.91833873]
[1735850541141,0.12549,207.75,207.63,16.93303873]
[1735850541142,8.91833873,207.7,207.63,16.93303873]
[1735850541643,8.91833873,207.71,207.64,8.91833873]
[1735850542840,8.91833873,207.72,207.65,8.91833873]
[1735850543038,0.25098,207.72,207.66,8.91833873]
[1735850543424,0.12549,207.72,207.66,8.91833873]
[1735850543618,8.91833873,207.74,207.67,8.91833873]
[1735850543930,0.12549,207.73,207.67,8.91833873]
[1735850544637,0.37647,207.74,207.68,8.91833873]
[1735850545954,0.25098,207.74,207.68,8.91833873]
[1735850546161,20.0,207.77,207.69,8.91833873]
[1735850546459,8.91833873,207.77,207.7,8.91833873]
[1735850546749,0.37647,207.76,207.7,8.91833873]
[1735850548243,0.25098,207.76,207.7,8.91833873]
[1735850548439,8.91833873,207.78,207.71,8.91833873]
[1735850548947,8.91833873,207.79,207.72,8.91833873]
[1735850550053,28.91833873,207.8,207.73,8.91833873]
[1735850550287,8.91833873,207.82,207.75,8.91833873]
[1735850552267,0.12549,207.81,207.75,8.91833873]
[1735850553655,0.25098,207.82,207.76,8.91833873]
[1735850557338,0.25098,207.82,207.75,8.91833873]
[1735850557761,8.91833873,207.82,207.75,8.91833873]
[1735850558860,0.12549,207.82,207.76,8.91833873]
[1735850559240,8.91833873,207.82,207.75,8.91833873]
[1735850559441,8.91833873,207.82,207.71,42.036]
[1735850559442,8.91833873,207.81,207.74,8.91833873]
[1735850559742,0.25098,207.85,207.74,8.91833873]
[1735850559944,8.91833873,207.82,207.75,8.91833873]
[1735850562569,0.25098,207.82,207.75,8.91833873]
[1735850562938,9.04382873,207.8,207.71,42.036]
[1735850563144,8.91833873,207.79,207.72,8.91833873]
[1735850563544,8.91833873,207.8,207.73,8.91833873]
[1735850565163,0.12549,207.8,207.74,8.91833873]
[1735850565343,0.12549,207.8,207.75,8.91833873]
[1735850565545,0.25098,207.81,207.75,8.91833873]
[1735850566269,8.91833873,207.83,207.76,8.91833873]
[1735850568467,8.91833873,207.83,207.75,8.91833873]
[1735850568674,0.12549,207.82,207.75,8.91833873]
[1735850568969,12.0257,207.89,207.79,8.91833873]
[1735850569165,8.91833873,207.87,207.79,8.91833873]
[1735850569367,0.12549,207.86,207.79,8.91833873]
[1735850569668,0.12549,207.86,207.8,8.91833873]
[1735850569873,0.25098,207.86,207.8,8.91833873]
[1735850570081,0.12549,207.86,207.8,8.91833873]
[1735850570377,0.25098,207.86,207.8,8.91833873]
[1735850571365,0.12549,207.85,207.79,8.91833873]
[1735850571763,0.12549,207.85,207.8,8.91833873]
[1735850571968,0.25098,207.86,207.8,8.91833873]
[1735850575582,0.25098,207.87,207.81,8.91833873]
[1735850576269,0.12549,207.86,207.8,8.91833873]
[1735850579691,8.91833873,207.88,207.81,8.91833873]
[1735850579982,398.94558,230.14,207.78,6.2001]
[1735850579983,8.91833873,207.89,207.82,8.91833873]
[1735850580369,0.12549,207.88,207.82,8.91833873]
[1735850580691,0.12549,207.88,207.83,8.91833873]
[1735850581059,0.25098,207.89,207.83,8.91833873]
[1735850581267,9.04382873,207.89,207.82,8.91833873]
[1735850581672,8.91833873,207.9,207.83,8.91833873]
[1735850581870,8.91833873,207.91,207.84,8.91833873]
[1735850582080,8.91833873,207.91,207.85,8.91833873]
[1735850582382,0.12549,207.9,207.85,8.91833873]
[1735850583983,0.12549,207.9,207.84,8.91833873]
[1735850584189,0.12549,207.9,207.85,8.91833873]
[1735850584762,8.91833873,207.91,207.84,8.91833873]
[1735850585184,8.91833873,207.91,207.85,8.91833873]
[1735850585684,8.91833873,207.92,207.85,8.91833873]
[1735850585886,8.91833873,207.9,207.83,8.91833873]
[1735850590590,0.12549,207.89,207.83,8.91833873]
[1735850592772,0.12549,207.89,207.84,8.91833873]
[1735850592967,0.12549,207.89,207.83,8.91833873]
[1735850593162,0.12549,207.89,207.82,8.91833873]
[1735850593163,9.04382873,207.89,207.82,8.91833873]
[1735850593363,0.12549,207.85,207.77,1.5316]
[1735850593567,8.91833873,207.85,207.78,8.91833873]
[1735850595392,8.91833873,207.84,207.78,8.91833873]
[1735850595771,8.91833873,207.85,207.78,8.91833873]
[1735850595980,0.12549,207.84,207.78,8.91833873]
[1735850596177,8.91833873,207.84,207.78,8.91833873]
[1735850596976,9.04382873,207.83,207.76,8.91833873]
[1735850597378,8.91833873,207.82,207.76,8.91833873]
[1735850598270,0.12549,207.81,207.75,8.91833873]
[1735850598983,0.12549,207.81,207.76,8.91833873]
[1735850600097,0.12549,207.81,207.75,8.91833873]
[1735850601799,8.91833873,207.81,207.75,8.91833873]
[1735850601979,8.91833873,207.81,207.74,8.91833873]
[1735850602184,8.91833873,207.78,207.72,8.91833873]
[1735850604575,8.91833873,207.78,207.71,8.91833873]
[1735850604775,8.91833873,207.77,207.7,8.91833873]
[1735850607612,0.12549,207.76,207.7,8.91833873]
[1735850608600,0.12549,207.8,207.67,1.6005]
[1735850608601,9.16931873,207.75,207.67,1.6005]
[1735850608784,9.16931873,207.75,207.68,8.91833873]
[1735850608988,9.29480873,207.73,207.66,8.91833873]
[1735850609175,0.12549,207.71,207.63,167.9]
[1735850609379,9.04382873,207.71,207.64,8.91833873]
[1735850610192,9.04382873,207.71,207.63,30.0]
[1735850610387,0.25098,207.71,207.65,8.91833873]
[1735850611907,0.25098,207.72,207.65,8.91833873]
[1735850612103,8.91833873,207.73,207.66,8.91833873]
[1735850612302,1.6136,207.76,207.68,8.91833873]
[1735850612303,8.91833873,207.75,207.68,8.91833873]
[1735850612988,8.91833873,207.74,207.67,8.91833873]
[1735850613195,9.04382873,207.74,207.67,8.91833873]
[1735850614008,8.91833873,207.73,207.66,8.91833873]
[1735850614383,0.12549,207.73,207.67,8.91833873]
[1735850616108,9.04382873,207.73,207.66,8.91833873]
[1735850616311,9.16931873,207.72,207.65,8.91833873]
[1735850617508,0.25098,207.7,207.64,8.91833873]
[1735850617692,9.04382873,207.7,207.63,8.91833873]
[1735850617889,8.91833873,207.69,207.62,8.91833873]
[1735850620607,0.12549,207.68,207.62,8.91833873]
[1735850621291,8.91833873,207.69,207.62,8.91833873]
[1735850621491,8.91833873,207.69,207.63,8.91833873]
[1735850621917,0.12549,207.69,207.63,8.91833873]
[1735850622216,8.91833873,207.69,207.63,8.91833873]
[1735850624992,0.12549,207.68,207.63,8.91833873]
[1735850626104,0.25098,207.69,207.63,8.91833873]
[1735850626913,0.12549,207.69,207.63,8.91833873]
[1735850627119,20.0,207.74,207.65,8.91833873]
[1735850627309,8.91833873,207.73,207.65,8.91833873]
[1735850627501,0.37647,207.72,207.66,8.91833873]
[1735850627697,0.37647,207.72,207.65,8.91833873]
[1735850628001,0.37647,207.72,207.66,8.91833873]
[1735850630420,0.37647,207.72,207.61,42.7635399]
[1735850630618,0.37647,207.72,207.66,8.91833873]
[1735850630934,0.37647,207.72,207.65,8.91833873]
[1735850632240,9.29480873,207.72,207.65,8.91833873]
[1735850632403,8.91833873,207.71,207.64,8.91833873]
[1735850632603,8.91833873,207.69,207.62,8.91833873]
[1735850633499,9.04382873,207.68,207.61,8.91833873]
[1735850633714,9.04382873,207.68,207.6,8.91833873]
[1735850634536,8.91833873,207.67,207.6,8.91833873]
[1735850635737,8.91833873,207.68,207.61,8.91833873]
[1735850636308,0.25098,207.67,207.61,8.91833873]
[1735850637541,0.12549,207.66,207.6,8.91833873]
[1735850639033,0.25098,207.67,207.61,8.91833873]
[1735850642641,8.91833873,207.69,207.62,8.91833873]
[1735850642854,8.91833873,207.7,207.63,8.91833873]
[1735850643041,0.25098,207.69,207.63,8.91833873]
[1735850644026,0.12549,207.68,207.62,8.91833873]
[1735850645074,0.25098,207.71,207.62,8.91833873]
[1735850645234,0.12549,207.68,207.62,8.91833873]
[1735850645953,0.12549,207.68,207.58,42.76573518]
[1735850646146,0.25098,207.68,207.62,8.91833873]
[1735850648324,0.12549,207.69,207.63,8.91833873]
[1735850649224,0.12549,207.69,207.62,8.91833873]
[1735850649633,0.12549,207.69,207.63,8.91833873]
[1735850649938,0.12549,207.7,207.63,8.91833873]
[1735850650149,8.91833873,207.71,207.63,8.91833873]
[1735850650336,8.91833873,207.74,207.67,8.91833873]
[1735850650538,8.91833873,207.75,207.67,8.91833873]
[1735850650909,8.91833873,207.74,207.67,8.91833873]
[1735850651634,0.12549,207.73,207.67,8.91833873]
[1735850653035,8.91833873,207.73,207.66,8.91833873]
[1735850653341,9.04382873,207.72,207.64,38.91833873]
[1735850653732,9.04382873,207.72,207.62,20.95913873]
[1735850653733,8.91833873,207.7,207.62,20.95913873]
[1735850654041,8.91833873,207.7,207.63,8.91833873]
[1735850654526,0.12549,207.7,207.64,8.91833873]
[1735850654930,0.12549,207.7,207.65,28.91833873]
[1735850656643,9.16931873,207.71,207.64,8.91833873]
[1735850660051,8.91833873,207.74,207.66,8.91833873]
[1735850661232,0.12549,207.72,207.66,8.91833873]
[1735850663743,8.91833873,207.7,207.62,12.0408]
[1735850663948,8.91833873,207.7,207.63,8.91833873]
[1735850665047,0.12549,207.7,207.64,8.91833873]
[1735850666323,9.04382873,207.7,207.63,8.91833873]
[1735850666530,0.12549,207.69,207.63,8.91833873]
[1735850666731,9.04382873,207.69,207.62,20.95913873]
[1735850666930,9.04382873,207.69,207.62,8.91833873]
[1735850667173,9.04382873,207.69,207.61,8.91833873]
[1735850667968,9.04382873,207.69,207.62,8.91833873]
[1735850670963,8.91833873,207.68,207.61,8.91833873]
[1735850671363,8.91833873,207.7,207.63,8.91833873]
[1735850671546,0.12549,207.69,207.63,8.91833873]
[1735850671735,9.04382873,207.69,207.62,28.91833873]
[1735850675649,0.12549,207.68,207.62,8.91833873]
[1735850676439,0.12549,207.68,207.61,8.91833873]
[1735850677359,0.12549,207.66,207.59,20.96103873]
[1735850677907,8.91833873,207.66,207.59,20.96103873]
[1735850678234,0.12549,207.66,207.59,20.96103873]
[1735850678856,0.12549,207.66,207.6,8.91833873]
[1735850679838,0.25098,207.68,207.62,8.91833873]
[1735850681574,0.12549,207.68,207.62,8.91833873]
[1735850683567,0.12549,207.67,207.62,8.91833873]
[1735850683944,1.5292,207.69,207.63,8.91833873]
[1735850684464,0.12549,207.68,207.63,8.91833873]
[1735850687364,0.25098,207.68,207.61,20.95973873]
[1735850687545,9.16931873,207.68,207.6,8.91833873]
[1735850689573,9.16931873,207.68,207.58,50.96163873]
[1735850691472,8.91833873,207.66,207.58,20.96163873]
[1735850691773,8.91833873,207.62,207.55,58.43181617]
[1735850691952,8.91833873,207.61,207.55,7.46847744]
[1735850692570,8.91833873,207.6,207.55,7.46847744]
[1735850692779,8.91833873,207.61,207.55,7.46847744]
[1735850692978,8.91833873,207.62,207.55,16.38681617]
[1735850693475,8.91833873,207.62,207.55,8.91833873]
[1735850694475,0.12549,207.67,207.54,0.0658486]
[1735850694476,8.91833873,207.6,207.54,0.0658486]
[1735850696981,0.25098,207.6,207.54,8.98418733]
[1735850699383,9.16931873,207.62,207.55,8.91833873]
[1735850700584,8.91833873,207.63,207.57,8.91833873]
[1735850700882,8.91833873,207.65,207.58,8.91833873]
[1735850701083,9.04382873,207.64,207.57,8.91833873]
[1735850705703,0.12549,207.63,207.58,8.91833873]
[1735850705889,0.12549,207.63,207.59,8.91833873]
[1735850706293,9.16931873,207.65,207.58,8.91833873]
[1735850706496,0.12549,207.64,207.58,8.91833873]
[1735850707305,0.12549,207.64,207.57,8.91833873]
[1735850707993,0.25098,207.63,207.57,8.91833873]
[1735850708187,0.25098,207.61,207.54,12.1111486]
[1735850708397,9.16931873,207.61,207.54,8.98418733]
[1735850709192,9.16931873,207.59,207.54,0.0658486]
[1735850709495,0.12549,207.58,207.54,0.0658486]
[1735850711002,0.12549,207.57,207.54,0.0658486]
[1735850711582,0.25098,207.59,207.54,0.0658486]
[1735850711902,0.25098,207.59,207.54,8.98418733]
[1735850712086,35.815484,207.67,207.55,8.91833873]
[1735850712401,8.91833873,207.62,207.55,8.91833873]
[1735850713801,9.29480873,207.61,207.54,8.98418733]
[1735850713997,0.25098,207.59,207.54,0.0658486]
[1735850715003,0.25098,207.57,207.54,0.0658486]
[1735850715308,9.16931873,207.57,207.54,0.0658486]
[1735850715488,0.25098,207.57,207.54,0.0658486]
[1735850716599,1.5445,207.61,207.54,8.98418733]
[1735850716804,8.91833873,207.63,207.56,8.91833873]
[1735850717684,10.47853873,207.66,207.58,8.91833873]
[1735850719796,0.37647,207.65,207.58,8.91833873]
[1735850720105,0.37647,207.65,207.59,8.91833873]
[1735850722580,0.37647,207.65,207.58,8.91833873]
[1735850722927,0.25098,207.63,207.57,8.91833873]
[1735850723081,0.25098,207.62,207.56,8.91833873]
[1735850723400,0.12549,207.62,207.57,8.91833873]
[1735850723916,9.04382873,207.63,207.56,8.91833873]
[1735850724208,0.12549,207.63,207.59,8.91833873]
[1735850724415,0.12549,207.63,207.58,8.91833873]
[1735850724710,0.12549,207.64,207.57,8.91833873]
[1735850724886,0.25098,207.64,207.58,8.91833873]
[1735850726288,0.25098,207.64,207.57,8.91833873]
[1735850726494,0.12549,207.63,207.57,8.91833873]
[1735850727007,0.12549,207.62,207.56,8.91833873]
[1735850728003,0.12549,207.57,207.54,0.0658486]
[1735850728405,0.12549,207.56,207.54,0.0658486]
[1735850729093,8.91833873,207.56,207.54,0.0658486]
[1735850729408,0.25098,207.56,207.54,0.0658486]
[1735850729996,0.25098,207.57,207.54,0.0658486]
[1735850734320,0.25098,207.58,207.54,0.0658486]
[1735850734620,0.12549,207.58,207.54,0.0658486]
[1735850735696,8.91833873,207.57,207.54,0.0658486]
[1735850735908,0.12549,207.56,207.54,0.0658486]
[1735850736406,0.25098,207.57,207.54,0.0658486]
[1735850740608,0.25098,207.56,207.54,0.0658486]
[1735850741523,9.16931873,207.56,207.54,0.0658486]
[1735850741824,9.29480873,207.55,207.54,0.0658486]
[1735850750511,8.91833873,207.57,207.54,0.0658486]
[1735850750818,8.91833873,207.6,207.54,0.0658486]
[1735850751220,0.12549,207.59,207.54,0.0658486]
[1735850752734,0.12549,207.58,207.54,0.0658486]
[1735850753803,0.12549,207.59,207.54,8.98418733]
[1735850754928,24.027864,207.66,207.55,8.91833873]
[1735850755123,0.25098,207.61,207.55,8.91833873]
[1735850755329,8.91833873,207.63,207.56,8.91833873]
[1735850755535,0.25098,207.62,207.57,8.91833873]
[1735850756624,8.91833873,207.64,207.57,8.91833873]
[1735850756938,8.91833873,207.64,207.58,8.91833873]
[1735850757720,12.0359,207.72,207.6,8.91833873]
[1735850757931,8.91833873,207.68,207.61,8.91833873]
[1735850759136,0.25098,207.65,207.57,49.10507412]
[1735850759318,0.25098,207.65,207.59,8.91833873]
[1735850759828,0.25098,207.65,207.58,8.91833873]
[1735850760011,0.25098,207.65,207.59,8.91833873]
[1735850760210,0.12549,207.64,207.57,36.3391]
[1735850760407,0.25098,207.62,207.57,36.3391]
[1735850760614,0.25098,207.62,207.57,45.25743873]
[1735850760906,0.25098,207.64,207.58,8.91833873]
[1735850761128,0.37647,207.64,207.58,8.91833873]
[1735850762134,8.91833873,207.66,207.59,8.91833873]
[1735850762949,0.25098,207.65,207.59,8.91833873]
[1735850763134,0.25098,207.65,207.61,8.91833873]
[1735850763435,9.16931873,207.67,207.6,8.91833873]
[1735850763616,0.25098,207.67,207.61,8.91833873]
[1735850763811,8.91833873,207.69,207.62,10.53593873]
[1735850764014,8.91833873,207.7,207.63,8.91833873]
[1735850764217,8.91833873,207.72,207.65,8.91833873]
[1735850766039,0.12549,207.71,207.65,8.91833873]
[1735850766220,0.25098,207.71,207.65,8.91833873]
[1735850766939,0.12549,207.72,207.66,8.91833873]
[1735850767133,9.04382873,207.72,207.65,8.91833873]
[1735850767642,0.12549,207.72,207.66,8.91833873]
[1735850767827,9.04382873,207.72,207.65,8.91833873]
[1735850768812,0.12549,207.72,207.66,8.91833873]
[1735850769539,0.25098,207.74,207.66,8.91833873]
[1735850769856,0.12549,207.74,207.68,8.91833873]
[1735850770059,0.12549,207.74,207.69,8.91833873]
[1735850770346,21.02210873,207.76,207.69,8.91833873]
[1735850770517,9.16931873,207.75,207.68,8.91833873]
[1735850770713,8.91833873,207.75,207.68,8.91833873]
[1735850771322,0.25098,207.74,207.68,8.91833873]
[1735850771556,9.16931873,207.74,207.67,8.91833873]
[1735850772334,0.25098,207.74,207.68,8.91833873]
[1735850773547,9.16931873,207.74,207.67,8.91833873]
[1735850774757,21.02210873,207.76,207.69,8.91833873]
[1735850774930,12.10377,207.76,207.71,8.91833873]
[1735850775257,0.12549,207.75,207.69,38.91833873]
[1735850776354,12.10377,207.76,207.7,8.91833873]
[1735850776553,12.10377,207.76,207.71,8.91833873]
[1735850776856,12.10377,207.76,207.72,8.91833873]
[1735850777558,12.10377,207.76,207.71,8.91833873]
[1735850777734,12.10377,207.76,207.72,8.91833873]
[1735850778561,12.10377,207.76,207.73,8.91833873]
[1735850779168,12.10377,207.76,207.75,8.91833873]
[1735850779338,12.10377,207.76,207.74,8.91833873]
[1735850779745,12.10377,207.76,207.73,8.91833873]
[1735850780057,12.10377,207.76,207.72,38.91833873]
[1735850780554,12.10377,207.76,207.73,8.91833873]
[1735850780930,12.10377,207.76,207.75,8.91833873]
[1735850781538,12.10377,207.76,207.74,8.91833873]
[1735850783058,12.10377,207.76,207.73,8.91833873]
[1735850783359,12.10377,207.76,207.72,38.91833873]
[1735850783656,12.10377,207.76,207.73,8.91833873]
[1735850784850,12.10377,207.76,207.74,8.91833873]
[1735850787158,12.10377,207.76,207.75,8.91833873]
[1735850787352,12.10377,207.76,207.75,38.91833873]
[1735850791253,12.10377,207.76,207.75,177.54000421]
[1735850791454,12.10377,207.76,207.75,176.81833873]
[1735850796939,8.74587,207.76,207.75,200.59522273]
[1735850797143,0.04347,207.76,207.75,202.22701273]
[1735850797366,6.518,207.9,207.81,30.0]
[1735850797567,6.518,207.9,207.83,8.91833873]
[1735850798548,0.25098,207.89,207.83,8.91833873]
[1735850800756,0.12549,207.9,207.83,8.91833873]
[1735850800965,8.91833873,207.88,207.81,30.0]
[1735850801153,8.91833873,207.88,207.81,8.91833873]
[1735850801761,9.16931873,207.85,207.78,30.0]
[1735850801968,9.16931873,207.84,207.77,8.91833873]
[1735850802875,9.16931873,207.84,207.76,8.91833873]
[1735850803689,0.12549,207.8,207.74,8.91833873]
[1735850803976,8.91833873,207.79,207.72,38.91833873]
[1735850804666,0.12549,207.79,207.74,8.91833873]
[1735850804893,1.5943,207.86,207.76,8.91833873]
[1735850805055,8.91833873,207.83,207.76,8.91833873]
[1735850805256,9.04382873,207.82,207.75,8.91833873]
[1735850806091,0.12549,207.8,207.74,8.91833873]
[1735850806454,9.04382873,207.8,207.73,8.91833873]
[1735850807068,0.25098,207.78,207.72,8.91833873]
[1735850807256,9.16931873,207.77,207.69,30.0]
[1735850807456,0.25098,207.75,207.69,38.91833873]
[1735850807761,9.16931873,207.73,207.65,30.0]
[1735850807975,9.16931873,207.71,207.64,8.91833873]
[1735850808859,0.25098,207.71,207.66,8.91833873]
[1735850809058,0.25098,207.71,207.67,8.91833873]
[1735850809270,0.25098,207.71,207.66,8.91833873]
[1735850810383,0.25098,207.71,207.65,8.91833873]
[1735850810582,9.16931873,207.71,207.64,8.91833873]
[1735850810788,0.12549,207.69,207.63,8.91833873]
[1735850812291,0.12549,207.7,207.64,8.91833873]
[1735850814785,0.25098,207.7,207.64,8.91833873]
[1735850815189,0.12549,207.7,207.65,8.91833873]
[1735850815498,8.91833873,207.72,207.65,8.91833873]
[1735850815790,0.25098,207.71,207.65,8.91833873]
[1735850816392,0.25098,207.72,207.67,8.91833873]
[1735850819089,0.12549,207.71,207.65,8.91833873]
[1735850819800,0.12549,207.72,207.66,8.91833873]
[1735850820174,9.04382873,207.72,207.65,8.91833873]
[1735850820896,9.04382873,207.7,207.62,8.91833873]
[1735850821592,9.04382873,207.7,207.63,8.91833873]
[1735850822788,0.12549,207.68,207.63,8.91833873]
[1735850822978,0.12549,207.68,207.62,8.91833873]
[1735850824591,0.12549,207.67,207.61,8.91833873]
[1735850824799,0.25098,207.65,207.59,8.91833873]